Cogmind - Beta 13 @@@ ROGUE MODE // 2024.03.31 @ 23:37:04 Player: Astrozal Result: Destroyed by G-50 Soldier with Heavy Laser Performance ------------- Evolutions (2) 1000 Regions Visited (5) 1000 Robots Destroyed (21) 105 Value Destroyed (470) 470 Prototype IDs (3) 60 Alien Tech Used (0) 0 Bonus (0) 0 TOTAL SCORE: 2635 Bonus ------- None Cogmind --------- Core Integrity 0/550 Matter 155/300 Energy 100/100 System Corruption 0% Temperature Cool (9) Movement Core (50) Location -8/Materials Parts ------- > --- POWER (2) -------- (None) > --- PROPULSION (3) --- (None) > --- UTILITY (3) ------ Utility Shielding Hacking Suite > --- WEAPON (3) ------- (None) > --- INVENTORY (5) ---- Light Nuclear Core Compact Matter Pod (0) Compact Matter Pod (0) Peak State ------------ > --- POWER ------------ Nuclear Core Nuclear Core > --- PROPULSION ------- Titanium Leg Titanium Leg > --- UTILITY ---------- Small Storage Unit Medium Matter Pod Utility Shielding > --- WEAPON ----------- Heavy EM Shotgun Light Assault Rifle Mini Grenade Launcher > --- INVENTORY -------- Ion Engine Light Ion Engine Light Nuclear Core Light Treads Light Treads Heavy EM Shotgun [Rating: 23] Favorites ----------- Power Ion Engine Engine Ion Engine Power Core Light Nuclear Core Propulsion Light Treads Treads Light Treads Leg Titanium Leg Utility Small Storage Unit Storage Small Storage Unit Hackware Hacking Suite Protection Utility Shielding Weapon Light Assault Rifle Energy Gun EM Pulse Gun Ballistic Gun Light Assault Rifle Launcher Mini Grenade Launcher Build | -11 -10 -10 -9 -9 -8 ------- Run | Yrd Mat Min Mat Min Mat Slots Evolved 4 | . . . 2 . 2 Power 1 | . . . 1 . . Propulsion 1 | . . . . . 1 Utility 1 | . . . . . 1 Weapon 1 | . . . 1 . . Parts Attached 23 | 6 1 2 3 . 11 Power 6 | 1 . . 1 . 4 Engine 3 | 1 . . . . 2 Core 3 | . . . 1 . 2 Reactor . | . . . . . . Propulsion 4 | 2 . . . . 2 Treads 2 | 2 . . . . . Leg 2 | . . . . . 2 Wheel . | . . . . . . Hover . | . . . . . . Flight . | . . . . . . Utility 4 | 1 1 . . . 2 Device . | . . . . . . Storage 2 | 1 1 . . . . Processor . | . . . . . . Hackware 1 | . . . . . 1 Protection 1 | . . . . . 1 Artifact . | . . . . . . Weapon 9 | 2 . 2 2 . 3 Energy Gun 4 | 2 . . . . 2 Energy Cannon . | . . . . . . Ballistic Gun 1 | . . 1 . . . Ballistic Cannon . | . . . . . . Launcher 4 | . . 1 2 . 1 Special Weapon . | . . . . . . Impact Weapon . | . . . . . . Slashing Weapon . | . . . . . . Piercing Weapon . | . . . . . . Special Melee Weapon . | . . . . . . Unidentified Prototypes 1 | . . . . . 1 Parts Lost 14 | . . 1 2 . 11 Power 4 | . . . . . 4 Propulsion 2 | . . . . . 2 Utility 2 | . . . . . 2 Weapon 6 | . . 1 2 . 3 Highest Loss Streak 9 | . . 1 2 . 9 To Critical Strikes . | . . . . . . Average Slot Usage (%) 84 | . 85 98 92 88 65 Engine 9 | . 14 14 11 11 . Core 6 | . . . 11 11 10 Treads 18 | . 28 28 22 22 . Leg 3 | . . . . . 13 Storage 17 | . 14 28 22 22 10 Protection 2 | . . . . . 9 Energy Gun 8 | . 28 5 . . 3 Ballistic Gun 7 | . . 9 11 11 6 Launcher 8 | . . 11 15 11 6 Naked Turns . | . . . . . . Heaviest Build 28 | 14 16 18 25 19 28 Greatest Support 40 | 40 40 40 40 40 34 Greatest Overweight (x) 3 | 1 . . . . 3 Average Overweight (x) . | . . . . . . Largest Inventory Capacity 8 | 8 8 8 8 8 8 Average Capacity 7 | 6 8 8 8 8 7 Most Carried 8 | 2 4 5 8 8 8 Average Carried 3 | . 3 4 3 8 5 Final Capacity 8 | 8 8 8 8 8 5 Final Carried 8 | 2 4 4 8 8 3 Class Distribution -------------------- 78% | Mutant 11% | Gunner 9% | Tank Dominant Class ---------------- Mutant | -10/Materials Mutant | -10/Mines Mutant | -9/Materials Mutant | -9/Mines Mutant | -8/Materials Resources | -11 -10 -10 -9 -9 -8 ----------- Run | Yrd Mat Min Mat Min Mat Matter Collected 420 | 198 62 29 20 . 111 Remotely . | . . . . . . Salvage Created 465 | . 106 34 158 . 167 Parts 35 | . 8 11 11 . 5 Haulers Intercepted . | . . . . . . Recyclers Shooed . | . . . . . . Parts Field Recycled . | . . . . . . Retrieved Matter . | . . . . . . Parts Self-Destructed . | . . . . . . Prevented . | . . . . . . Kills | -11 -10 -10 -9 -9 -8 ------- Run | Yrd Mat Min Mat Min Mat Combat Hostiles Destroyed 13 | . 2 6 2 . 3 Guns 4 | . 2 1 . . 1 AOE 9 | . . 5 2 . 2 Classes Destroyed 9 | . 2 1 5 . 1 Worker 2 | . . . 2 . . Tunneler 1 | . . . 1 . . Recycler 2 | . . . 1 . 1 Operator 1 | . . . 1 . . Watcher 2 | . 1 . 1 . . Swarmer 6 | . . 6 . . . Grunt 5 | . 2 . 1 . 2 Duelist 1 | . . . . . 1 Sentry 1 | . . . 1 . . Best Kill Streak 6 | . 2 6 5 . 4 Combat Bots Only 6 | . 2 6 2 . 3 Max Kills in Single Turn 3 | . 1 2 3 . 2 Gunslinging . | . . . . . . Exploded 2 | . . 2 1 . 1 Melee . | . . . . . . Uniques/NPCs Destroyed . | . . . . . . Combat | -11 -10 -10 -9 -9 -8 -------- Run | Yrd Mat Min Mat Min Mat Hostile Shots Fired 145 | . 8 37 21 . 79 Missed 43 | . 3 9 6 . 25 Damage Taken 1962 | . 85 298 309 . 1270 Core 702 | . . 96 42 . 564 Absorbed by Shields . | . . . . . . Redirected to Shielding 16 | . . . . . 16 Core Remaining (%) 83 | 100 . 61 . 89 . Volleys Fired 37 | . 7 10 12 . 8 Largest 3 | . 2 2 3 . 3 Hottest 100 | . 90 53 83 . 100 Shots Fired 68 | . 14 14 19 . 21 Gun 50 | . 14 8 12 . 16 Cannon . | . . . . . . Launcher 18 | . . 6 7 . 5 Special . | . . . . . . Kinetic 28 | . . 8 12 . 8 Thermal 7 | . 7 . . . . Explosive 18 | . . 6 7 . 5 Electromagnetic 15 | . 7 . . . 8 Robot Hit Streak 9 | . 9 2 4 . 6 Robot Miss Streak 6 | . 1 6 3 . 2 Penetration Max . | . . . . . . Secondary Targets 1 | . . . . . 1 Max Gunslinging Chain 1 | . . . . . 1 Shots Hit Robots 40 | . 10 3 11 . 16 Core Hits 42 | . 6 6 14 . 16 Critical Kills . | . . . . . . Critical Parts Destroyed . | . . . . . . Critical Strikes 1 | . 1 . . . . Burn 1 | . 1 . . . . Melee Attacks . | . . . . . . Impact . | . . . . . . Slashing . | . . . . . . Piercing . | . . . . . . Sneak Attacks . | . . . . . . Combat Hostiles . | . . . . . . Follow-up Attacks . | . . . . . . Damage Inflicted 1377 | . 209 333 432 . 403 Guns 379 | . 129 15 57 . 178 Cannons . | . . . . . . Explosions 987 | . 80 318 371 . 218 Melee . | . . . . . . Ramming 11 | . . . 4 . 7 Kinetic 110 | . . 15 57 . 38 Thermal 143 | . 143 . . . . Explosive 907 | . . 318 371 . 218 Electromagnetic 206 | . 66 . . . 140 Impact . | . . . . . . Slashing . | . . . . . . Piercing . | . . . . . . Highest Corruption . | . . . . . . Average Corruption . | . . . . . . Corruption Purged . | . . . . . . Corruption Blocked . | . . . . . . Overload Shots . | . . . . . . Overflow Damage 67 | . . 11 13 . 43 Projectiles . | . . . . . . Explosions 67 | . . 11 13 . 43 Melee . | . . . . . . Knockbacks . | . . . . . . Impact . | . . . . . . Kinetic . | . . . . . . Secondary . | . . . . . . Self-Inflicted Damage 239 | . 20 82 102 . 35 Shots 9 | . 1 2 4 . 2 Rammed 3 | . . . 1 . 2 Targets Rammed 3 | . . . 1 . 2 Kicked . | . . . . . . Crushed . | . . . . . . Highest Temperature 296 | . 114 12 41 . 296 Average Temperature 66 | . 51 9 16 . 125 Received Heat Transfer 420 | . 36 . 69 . 315 Siege Activations . | . . . . . . Robots Corrupted . | . . . . . . Combat Hostiles . | . . . . . . Parts Fried . | . . . . . . Impact Corruptions . | . . . . . . Robots Melted . | . . . . . . Combat Hostiles . | . . . . . . Parts Melted 1 | . 1 . . . . Heat Transferred 359 | . 359 . . . . Parts Sabotaged . | . . . . . . Parts Stolen . | . . . . . . Parts Stripped . | . . . . . . Power Chain Reactions 1 | . 1 . . . . Alert | -11 -10 -10 -9 -9 -8 ------- Run | Yrd Mat Min Mat Min Mat Peak Influence 289 | . 151 229 289 112 136 Initial 112 | . . 58 89 112 43 Average 129 | . 90 153 222 112 82 Maximum Alert Level 1 | . . 1 1 . . Low Security (%) 77 | 100 100 55 42 100 100 Level 1 22 | . . 44 57 . . Level 2 . | . . . . . . Level 3 . | . . . . . . Level 4 . | . . . . . . Level 5 . | . . . . . . High Security . | . . . . . . Max Security . | . . . . . . Squads Dispatched 4 | . 2 . . . 2 Investigation . | . . . . . . Extermination . | . . . . . . Reinforcement 4 | . 2 . . . 2 Assault . | . . . . . . Garrison . | . . . . . . Intercept . | . . . . . . Searches Triggered . | . . . . . . Construction Impeded . | . . . . . . Haulers Reinforced . | . . . . . . Active Scanning Responses . | . . . . . . Cargo Convoy Interrupts . | . . . . . . Stealth | -11 -10 -10 -9 -9 -8 --------- Run | Yrd Mat Min Mat Min Mat Distress Signals 3 | . . . 1 . 2 Communications Jammed . | . . . . . . Distress Signals . | . . . . . . Times Spotted 34 | . 6 6 7 . 15 Peak Tracking Total 13 | . 2 3 6 . 13 Tactical Retreats 1 | . . . . . 1 Traps | -11 -10 -10 -9 -9 -8 ------- Run | Yrd Mat Min Mat Min Mat Traps Triggered . | . . . . . . Indirectly . | . . . . . . Trap Hack Attempts . | . . . . . . Triggered . | . . . . . . Disarmed 11 | . . . 6 . 5 Reprogrammed . | . . . . . . Reused . | . . . . . . Traps Extracted . | . . . . . . Installed . | . . . . . . Triggered . | . . . . . . Machines | -11 -10 -10 -9 -9 -8 ---------- Run | Yrd Mat Min Mat Min Mat Machines Disabled 4 | . . . 4 . . Max in Single Turn 2 | . . . 2 . . Machines Repaired . | . . . . . . Machines Dismantled . | . . . . . . Machines Sabotaged . | . . . . . . Overloaded Fab Kills . | . . . . . . Hacking | -11 -10 -10 -9 -9 -8 --------- Run | Yrd Mat Min Mat Min Mat Machines Accessed 4 | . 2 . 1 . 1 Terminals 4 | . 2 . 1 . 1 Fabricators . | . . . . . . Repair Stations . | . . . . . . Recycling Units . | . . . . . . Scanalyzers . | . . . . . . Garrison Access . | . . . . . . Total Hacks 15 | . 9 . 2 . 4 Successful 12 | . 9 . 2 . 1 Failed 3 | . . . . . 3 Catastrophic . | . . . . . . Database Lockouts . | . . . . . . Manual . | . . . . . . Terminals 15 | . 9 . 2 . 4 Fabricators . | . . . . . . Repair Stations . | . . . . . . Recycling Units . | . . . . . . Scanalyzers . | . . . . . . Garrison Access . | . . . . . . Terminal Hacks 12 | . 9 . 2 . 1 Record 3 | . 3 . . . . Prototype ID Bank 1 | . 1 . . . . Alert Level 1 | . 1 . . . . Disarm Traps 2 | . . . 1 . 1 Dispatch Records 3 | . 2 . 1 . . Security Status 1 | . 1 . . . . Reinforcement Status 1 | . 1 . . . . Fabricator Hacks . | . . . . . . Repair Station Hacks . | . . . . . . Recycling Unit Hacks . | . . . . . . Scanalyzer . | . . . . . . Garrison Access Hacks . | . . . . . . Unauthorized Hacks . | . . . . . . Terminals . | . . . . . . Fabricators . | . . . . . . Repair Stations . | . . . . . . Recycling Units . | . . . . . . Scanalyzers . | . . . . . . Garrison Access . | . . . . . . Data Cores Recovered . | . . . . . . Used . | . . . . . . Hacking Detections 3 | . 1 . 1 . 1 Full Trace Events . | . . . . . . Feedback Events . | . . . . . . Feedback Blocked . | . . . . . . Robot Schematics Acquired . | . . . . . . Robots Built . | . . . . . . Authchips . | . . . . . . Time . | . . . . . . Total Robot Build Rating . | . . . . . . Part Schematics Acquired . | . . . . . . Parts Built . | . . . . . . Authchips . | . . . . . . Time . | . . . . . . Total Part Build Rating . | . . . . . . Parts Repaired . | . . . . . . Time . | . . . . . . Parts Recycled . | . . . . . . Recycled Matter . | . . . . . . Retrieved Matter . | . . . . . . Retrieved Components . | . . . . . . Parts Scanalyzed . | . . . . . . Part Schematics Acquired . | . . . . . . Parts Damaged . | . . . . . . Bothacking | -11 -10 -10 -9 -9 -8 ------------ Run | Yrd Mat Min Mat Min Mat Used RIF Installer . | . . . . . . Robots Hacked . | . . . . . . Non-combat . | . . . . . . Combat . | . . . . . . Robot Hacks Applied . | . . . . . . Relay Couplers Released . | . . . . . . Fabnet Peak Effective % . | . . . . . . Robots Rewired . | . . . . . . Allies Hacked . | . . . . . . Hacks Repelled . | . . . . . . Allies | -11 -10 -10 -9 -9 -8 -------- Run | Yrd Mat Min Mat Min Mat Total Allies . | . . . . . . Largest Group . | . . . . . . Highest-Rated Group . | . . . . . . Highest-Rated Ally . | . . . . . . Total Orders . | . . . . . . Ally Attacks . | . . . . . . Total Damage . | . . . . . . Kills . | . . . . . . Allies Corrupted . | . . . . . . Allies Melted . | . . . . . . Intel | -11 -10 -10 -9 -9 -8 ------- Run | Yrd Mat Min Mat Min Mat Robot Analysis Total . | . . . . . . Derelict Logs Recovered . | . . . . . . Drone Launches . | . . . . . . Drone Recoveries . | . . . . . . Exploration | -11 -10 -10 -9 -9 -8 ------------- Run | Yrd Mat Min Mat Min Mat Turns Passed 1197 | 85 263 123 368 48 310 Spaces Moved 763 | 51 150 62 204 31 265 Core 118 | 8 . . . . 110 Treads 490 | 43 150 62 204 31 . Legs 155 | . . . . . 155 Wheels . | . . . . . . Hover . | . . . . . . Flight . | . . . . . . Fastest Speed 50 | 50 160 160 160 160 50 Average Speed 138 | 146 160 160 160 160 100 Slowest Speed 200 | 160 160 160 160 160 200 Overloaded Moves . | . . . . . . Propulsion Burnouts . | . . . . . . Robots Hopped . | . . . . . . Cave-ins Triggered . | . . . . . . Exploration Rate (%) 17 | 5 28 17 15 11 31 Regions Visited 5 Branch Regions 2 Pre-discovered Areas . | . . . . . . Known Exits Taken . | . . . . . . Unknown Exits Taken 5 | 1 1 1 1 1 . Scrap Searched . | . . . . . . Spaces Dug . | . . . . . . Terrain Destroyed 144 | . 5 62 49 . 28 Melee . | . . . . . . Projectile . | . . . . . . AOE 144 | . 5 62 49 . 28 Terrain Rammed . | . . . . . . Walls Destroyed . | . . . . . . Machines Disabled . | . . . . . . Actions | -11 -10 -10 -9 -9 -8 --------- Run | Yrd Mat Min Mat Min Mat Total 846 | 58 159 74 230 30 295 Wait . | . . . . . . Move 758 | 50 149 61 203 30 265 Hop . | . . . . . . Pick Up 15 | 2 2 . 9 . 2 Fast Attach 10 | 6 1 1 . . 2 Attach 12 | . . 1 3 . 8 Detach 5 | . . 1 . . 4 Swap 1 | . . . . . 1 Drop 5 | . . . 2 . 3 Fire 37 | . 7 10 12 . 8 Melee . | . . . . . . Ram 2 | . . . . . 2 Kick . | . . . . . . Crush 1 | . . . 1 . . Escape Stasis . | . . . . . . Rewire . | . . . . . . Trap . | . . . . . . Miscellaneous . | . . . . . . Route ------- -11/Scrapyard -10/Materials (discovered 2 exits: [*Min x2]) -10/Mines -9/Materials -9/Mines -8/Materials History --------- Turn | Location | Event 2 | -11/Scrapyard | Met Revision 17 6 | -11/Scrapyard | Discovered new exit (range 16) 86 | -11/Scrapyard | Entered Materials 202 | -10/Materials | Discovered new exit (range 7) 313 | -10/Materials | Discovered new exit (range 11) 315 | -10/Materials | Build established: Mutant 349 | -10/Materials | Entered Mines 356 | -10/Mines | Received a Rocket Launcher from a helpful Derelict 440 | -10/Mines | Discovered new exit (range 10) 472 | -10/Mines | Entered Materials 472 | -9/Materials | Evolved 2 slots: Power x1, Weapon x1 733 | -9/Materials | Discovered new exit (range 15) 840 | -9/Materials | Entered Mines 868 | -9/Mines | Discovered new exit (range 9) 869 | -9/Mines | Met a Derelict bent on vengeance 888 | -9/Mines | Entered Materials 888 | -8/Materials | Evolved 2 slots: Propulsion x1, Utility x1 1144 | -8/Materials | Core integrity fell below 50% 1158 | -8/Materials | Core integrity fell below 20% 1184 | -8/Materials | Lost 9 parts (3p2n1u3w) 1198 | -8/Materials | Destroyed by G-50 Soldier with Heavy Laser Last Messages --------------- W-25 Informer sends out distress signal. Connecting with Terminal... Current location identified: Materials >>Traps(Disarm) Disarmed 5 Alarm Traps. Critical hit (Burn: +37). Ion Engine destroyed. Lgt. Ion Engine destroyed. Penetrated by Slug. G-47 Trooper knocked back. U-05 Engineer builds a Wall. U-05 Engineer lays Concrete. Acquired 4 matter. Penetrated by Slug. Slammed into G-47 Trooper. Acquired 6 matter. G-47 Trooper suffers critical hit (Burn). T-07 Excavator is excavating. W-25 Informer sends out distress signal. Slammed into G-47 Trooper. Map ----- +----------------------------------------------------+ | ?????????????????????????????????????????????????? | | ?????????????????????????????????????????????????? | | ?????????????????????????????????????????????????? | | ?????????????????????????????????????????????????? | | ?????????????????????????????????????????????????? | | ?????????????????????????????????????????????????? | | ?????????????????????????????????????????????????? | | ?????????????????????????????????????????????????? | | ?????????????????????????????????????????????????? | | ?????????????????????????????????????????????????? | | ?????????????????????????????????????????????????? | | ?????????????????????????????????????????????????? | | ?????????????????????????????????????????????????? | | ?????????????????????????????????????????????????? | | ?????????????????????????????????????????????????? | | ?????????????????????????????????????????????????? | | ?????????????????????????????????????????????????? | | ???????????????????###########???????????????????? | | ???????????????????# #???????????????????? | | ???????????????????# """ #???????????????????? | | ???????????????????# """"" #???????????????????? | | ???????????????????# """"" #???????????????????? | | ???????????????????# """"" #???????????????????? | | ???????????????????# """ #????????? #???????? | | ???????????????????# g #??????? +???????? | | ???????????????????# @ #?????"" ! #???????? | | ???????????????????#####g######## #???????? | | ??????????????????????# g + """ = ????????? | | ????????????????????### ####### """ ????????? | | ????????????????????# # #????????"" ?????????? | | ????????????????????# #?????????? ?????????? | | ????????????????????# # #???????????+#?????????? | | ????????????????????### #??????????? #?????????? | | ??????????????????????# #??????????? #?????????? | | ??????????????????????# #?#######??? #?????????? | | ??????????????????????# # #??? #?????????? | | ??????????????????????# # #??# #?????????? | | ??????????????????????+ + #??# #?????????? | | ??????????????????????# ############ ###???????? | | ??????????????????????# ########## #???????? | | ???????????########???# ####????? | | ???????????# #???# T +????? | | ???????????# """ #???# #???????? | | ???????????# """ #???# ########## #???????? | | ???????????# """ #???# ####?????## ##???????? | | ???????????# #???# !##?????# #????????? | | ???##??????# #???# !#?????# #????????? | | ???# ??#######+####### !#?????# #????????? | | ???# ?# !#?????# #????????? | | ???# # !#?????# #????????? | +----------------------------------------------------+ Best States ------------- Heat Dissipation 31 Energy Generation 23 Energy Capacity 380 Matter Stores 300 Matter Capacity 400 Sight Range 16 Terrain Scan Density 10 Utility Shielding 33 Evasion (%) 55 Recoil Reduction 2 Offensive Hacking 10 Item Schematics ----------------- None Robot Schematics ------------------ None Fabricated ------------ Nothing Alien Tech Used ----------------- None Achievements -------------- None Challenges ------------ None Game ------ Seed ZioniteBiocellCorpse Manual? 0 Play Time 00:28:27 Cumulative 1.8 hours Start 2024.03.31 @ 23:11:47 End 2024.03.31 @ 23:37:04 Sessions 1 Manual Loads 0 Difficulty Rogue Special Mode None Game No. 4 Rogue 4 Adventurer 0 Explorer 0 Win Type - Total 0 Types 0/0/0/0/0/0/0/0/0 Lore% 1 Gallery% 4 Achievement% 3 Wizard Run 0 Options --------- Layout 1 ASCII 1 Keyboard 0 Movement Arrows Keybinds 0 Fullscreen 1 Font 16/Terminus Map View 50x40 Zoom Use 0% Tactical HUD 0 Map Filters NONE Filters NONE Steam SD RUN: 3347b5bf-0e61-45ac-b7e9-5574b4a4519f